[Event "Mistrovství Čech mládeže 2023 - HD16"]
[Site "Harrachov, Czech Republic"]
[Date "2023.10.28"]
[Round "9.16"]
[White "Bludský, Vít"]
[Black "Mikhno, Artem"]
[Result "0-1"]
[TimeControl "90m + 30s"]
[WhiteElo "1525"]
[BlackElo "1781"]

1. e4 {[%clk 01:30:58]} {[%emt 00:00:02]} c6 {[%clk 01:30:18]} {[%emt
00:00:42]} 2. d4 {[%clk 01:30:32]} {[%emt 00:00:56]} d5 {[%clk 01:30:33]}
{[%emt 00:00:15]} 3. e5 {[%clk 01:30:12]} {[%emt 00:00:50]} Bf5 {[%clk
01:30:47]} {[%emt 00:00:17]} 4. Nf3 {[%clk 01:29:50]} {[%emt 00:00:52]} e6
{[%clk 01:30:28]} {[%emt 00:00:48]} 5. Be2 {[%clk 01:29:25]} {[%emt 00:00:55]}
c5 {[%clk 01:29:12]} {[%emt 00:01:46]} 6. O-O {[%clk 01:28:56]} {[%emt
00:00:59]} Nc6 {[%clk 01:29:37]} {[%emt 00:00:06]} 7. Be3 {[%clk 01:28:12]}
{[%emt 00:01:15]} cxd4 {[%clk 01:27:39]} {[%emt 00:02:27]} 8. Nxd4 {[%clk
01:28:21]} {[%emt 00:00:21]} Nge7 {[%clk 01:27:43]} {[%emt 00:00:26]} 9. f4
{[%clk 01:28:30]} {[%emt 00:00:21]} Nxd4 {[%clk 01:27:46]} {[%emt 00:00:27]} 10.
Bxd4 {[%clk 01:28:49]} {[%emt 00:00:11]} Nc6 {[%clk 01:28:07]} {[%emt
00:00:09]} 11. Nc3 {[%clk 01:28:03]} {[%emt 00:01:15]} Rc8 {[%clk 01:28:17]}
{[%emt 00:00:20]} 12. Bb5 {[%clk 01:27:24]} {[%emt 00:01:10]} a6 {[%clk
01:28:33]} {[%emt 00:00:14]} 13. Bxc6+ {[%clk 01:27:41]} {[%emt 00:00:12]} Rxc6
{[%clk 01:28:41]} {[%emt 00:00:22]} 14. Kh1 {[%clk 01:20:40]} {[%emt 00:07:31]}
Bb4 {[%clk 01:27:10]} {[%emt 00:02:02]} 15. a3 {[%clk 01:16:28]} {[%emt
00:04:42]} Bxc3 {[%clk 01:27:31]} {[%emt 00:00:08]} 16. Bxc3 {[%clk 01:16:15]}
{[%emt 00:00:44]} O-O {[%clk 01:27:35]} {[%emt 00:00:26]} 17. Rc1 {[%clk
01:15:36]} {[%emt 00:01:09]} Qb6 {[%clk 01:24:10]} {[%emt 00:03:55]} 18. Qd2
{[%clk 01:07:50]} {[%emt 00:08:16]} Rfc8 {[%clk 01:24:04]} {[%emt 00:00:36]} 19.
Bd4 {[%clk 01:07:55]} {[%emt 00:00:25]} Qb5 {[%clk 01:22:49]} {[%emt 00:01:45]}
20. c3 {[%clk 01:07:20]} {[%emt 00:01:05]} Qb3 {[%clk 01:21:16]} {[%emt
00:02:03]} 21. Rf2 {[%clk 01:06:19]} {[%emt 00:01:32]} b5 {[%clk 01:21:18]}
{[%emt 00:00:29]} 22. Qd1 {[%clk 01:05:18]} {[%emt 00:01:30]} Qxd1+ {[%clk
01:19:43]} {[%emt 00:02:05]} 23. Rxd1 {[%clk 01:05:35]} {[%emt 00:00:13]} a5
{[%clk 01:19:39]} {[%emt 00:00:33]} 24. Rff1 {[%clk 01:03:47]} {[%emt
00:02:18]} Kf8 {[%clk 01:19:07]} {[%emt 00:01:02]} 25. Ra1 {[%clk 01:03:50]}
{[%emt 00:00:27]} Ke7 {[%clk 01:18:10]} {[%emt 00:01:27]} 26. b4 {[%clk
01:02:32]} {[%emt 00:01:47]} Ra6 {[%clk 01:18:12]} {[%emt 00:00:28]} 27. Bc5+
{[%clk 00:59:27]} {[%emt 00:03:35]} Kd7 {[%clk 01:16:39]} {[%emt 00:02:03]} 28.
Kg1 {[%clk 00:58:01]} {[%emt 00:01:56]} h6 {[%clk 01:16:00]} {[%emt 00:01:09]}
29. Rad1 {[%clk 00:57:19]} {[%emt 00:01:12]} axb4 {[%clk 01:16:00]} {[%emt
00:00:30]} 30. Bxb4 {[%clk 00:57:34]} {[%emt 00:00:15]} Rc4 {[%clk 01:16:04]}
{[%emt 00:00:26]} 31. Rd4 {[%clk 00:57:53]} {[%emt 00:00:11]} g6 {[%clk
01:12:30]} {[%emt 00:04:04]} 32. Rf2 {[%clk 00:55:58]} {[%emt 00:02:25]} Rac6
{[%clk 01:12:41]} {[%emt 00:00:19]} 33. Rfd2 {[%clk 00:56:17]} {[%emt
00:00:11]} g5 {[%clk 01:03:58]} {[%emt 00:09:13]} 34. g3 {[%clk 00:56:19]}
{[%emt 00:00:28]} gxf4 {[%clk 01:02:21]} {[%emt 00:02:07]} 35. gxf4 {[%clk
00:56:46]} {[%emt 00:00:03]} Rxd4 {[%clk 01:02:21]} {[%emt 00:00:30]} 36. Rxd4
{[%clk 00:57:13]} {[%emt 00:00:03]} Rc8 {[%clk 01:02:33]} {[%emt 00:00:17]} 37.
Rd2 {[%clk 00:53:31]} {[%emt 00:04:12]} Be4 {[%clk 01:02:46]} {[%emt 00:00:17]}
38. Kf2 {[%clk 00:52:03]} {[%emt 00:01:57]} Rg8 {[%clk 01:02:51]} {[%emt
00:00:25]} 39. Ke3 {[%clk 00:51:15]} {[%emt 00:01:19]} h5 {[%clk 01:03:03]}
{[%emt 00:00:18]} 40. Rf2 {[%clk 00:43:27]} {[%emt 00:08:18]} h4 {[%clk
01:02:27]} {[%emt 00:01:06]} 41. Re2 {[%clk 00:41:53]} {[%emt 00:02:04]} h3
{[%clk 01:00:44]} {[%emt 00:02:13]} 42. Rd2 {[%clk 00:41:48]} {[%emt 00:00:35]}
Rg6 {[%clk 00:59:29]} {[%emt 00:01:45]} 43. Re2 {[%clk 00:39:19]} {[%emt
00:02:59]} f6 {[%clk 00:50:59]} {[%emt 00:09:00]} 44. Rf2 {[%clk 00:37:16]}
{[%emt 00:02:32]} f5 {[%clk 00:47:00]} {[%emt 00:04:31]} 45. Bc5 {[%clk
00:35:00]} {[%emt 00:02:46]} Ke8 {[%clk 00:47:10]} {[%emt 00:00:20]} 46. Ke2
{[%clk 00:34:31]} {[%emt 00:00:59]} Kf7 {[%clk 00:47:32]} {[%emt 00:00:08]} 47.
Rf1 {[%clk 00:34:20]} {[%emt 00:00:40]} Rg2+ {[%clk 00:47:46]} {[%emt
00:00:17]} 48. Rf2 {[%clk 00:34:39]} {[%emt 00:00:11]} Rg1 {[%clk 00:47:41]}
{[%emt 00:00:35]} 49. Kd2 {[%clk 00:28:31]} {[%emt 00:06:39]} Kg6 {[%clk
00:47:41]} {[%emt 00:00:30]} 50. Rf3 {[%clk 00:26:54]} {[%emt 00:02:06]} Rg2+
{[%clk 00:45:18]} {[%emt 00:02:54]} 51. Rf2 {[%clk 00:27:17]} {[%emt 00:00:07]}
Rg4 {[%clk 00:45:41]} {[%emt 00:00:07]} 52. Rf1 {[%clk 00:17:33]} {[%emt
00:10:14]} Kh5 {[%clk 00:45:52]} {[%emt 00:00:19]} 53. Ke2 {[%clk 00:17:17]}
{[%emt 00:00:46]} Rg2+ {[%clk 00:46:00]} {[%emt 00:00:22]} 54. Rf2 {[%clk
00:17:23]} {[%emt 00:00:24]} Rg1 {[%clk 00:46:19]} {[%emt 00:00:10]} 55. Be3
{[%clk 00:15:50]} {[%emt 00:02:04]} Kg4 {[%clk 00:46:35]} {[%emt 00:00:14]} 56.
Bd2 {[%clk 00:15:40]} {[%emt 00:00:40]} Ra1 {[%clk 00:46:50]} {[%emt 00:00:15]}
57. Ke3 {[%clk 00:15:22]} {[%emt 00:00:48]} Rxa3 {[%clk 00:39:59]} {[%emt
00:07:21]} 58. Rf1 {[%clk 00:15:17]} {[%emt 00:00:35]} b4 {[%clk 00:40:07]}
{[%emt 00:00:23]} 59. Kd4 {[%clk 00:15:32]} {[%emt 00:00:13]} b3 {[%clk
00:40:18]} {[%emt 00:00:19]} 60. Bc1 {[%clk 00:15:25]} {[%emt 00:00:37]} Ra2
{[%clk 00:40:28]} {[%emt 00:00:21]} 0-1

[Event "Mistrovství Čech mládeže 2023 - HD16"]
[Site "Harrachov, Czech Republic"]
[Date "2023.10.28"]
[Round "9.17"]
[White "Sochor, Antonín"]
[Black "Bauer, Sebastian"]
[Result "0-1"]
[TimeControl "90m + 30s"]
[WhiteElo "1702"]
[BlackElo "1366"]

1. e4 {[%clk 01:30:58]} {[%emt 00:00:02]} e5 {[%clk 01:30:55]} {[%emt
00:00:05]} 2. Nf3 {[%clk 01:31:21]} {[%emt 00:00:07]} Nc6 {[%emt 00:00:06]} 3.
Bc4 {[%clk 01:31:33]} {[%emt 00:00:15]} Bc5 {[%clk 01:31:47]} {[%emt 00:00:05]}
4. O-O {[%clk 01:31:43]} {[%emt 00:00:19]} d6 {[%clk 01:30:28]} {[%emt
00:01:50]} 5. c3 {[%clk 01:31:56]} {[%emt 00:00:17]} Nf6 {[%clk 01:26:59]}
{[%emt 00:03:58]} 6. d4 {[%clk 01:30:44]} {[%emt 00:01:42]} Bb6 {[%clk
01:26:14]} {[%emt 00:01:16]} 7. dxe5 {[%clk 01:27:01]} {[%emt 00:04:12]} Nxe4
{[%clk 01:24:46]} {[%emt 00:01:58]} 8. Bxf7+ {[%clk 01:24:42]} {[%emt
00:02:49]} Kxf7 {[%clk 01:22:36]} {[%emt 00:02:41]} 9. Qd5+ {[%clk 01:24:32]}
{[%emt 00:00:40]} Be6 {[%clk 01:22:38]} {[%emt 00:00:28]} 10. Qxe4 {[%emt
00:00:23]} dxe5 {[%clk 01:16:29]} {[%emt 00:06:38]} 11. Ng5+ {[%clk 01:23:48]}
{[%emt 00:01:20]} Ke7 {[%clk 01:15:41]} {[%emt 00:01:20]} 12. Be3 {[%clk
01:21:37]} {[%emt 00:02:40]} Qd5 {[%clk 01:02:25]} {[%emt 00:13:47]} 13. Qh4
{[%clk 01:20:01]} {[%emt 00:02:06]} Qc4 {[%clk 01:02:09]} {[%emt 00:00:46]} 14.
Ne4+ {[%clk 01:19:31]} {[%emt 00:01:00]} Ke8 {[%clk 00:53:20]} {[%emt
00:09:19]} 15. Na3 {[%clk 01:17:20]} {[%emt 00:02:39]} Qe2 {[%clk 00:51:53]}
{[%emt 00:01:42]} 16. Bxb6 {[%clk 01:14:23]} {[%emt 00:03:42]} axb6 {[%clk
00:51:31]} {[%emt 00:00:53]} 17. Nf6+ {[%clk 01:12:35]} {[%emt 00:02:18]} Kf7
{[%clk 00:43:01]} {[%emt 00:09:00]} 18. Rae1 {[%clk 01:10:51]} {[%emt
00:02:15]} Qxb2 {[%clk 00:39:53]} {[%emt 00:03:37]} 19. f4 {[%clk 01:10:29]}
{[%emt 00:00:52]} Rxa3 {[%clk 00:33:25]} {[%emt 00:06:59]} 20. fxe5 {[%clk
01:09:04]} {[%emt 00:01:55]} Rxa2 {[%clk 00:33:40]} {[%emt 00:00:16]} 21. Qh5+
{[%clk 01:02:26]} {[%emt 00:07:07]} Ke7 {[%clk 00:20:58]} {[%emt 00:13:11]} 22.
Qg5 {[%clk 01:01:48]} {[%emt 00:01:09]} Qxg2+ {[%clk 00:20:39]} {[%emt
00:00:49]} 23. Qxg2 {[%clk 01:01:41]} {[%emt 00:00:36]} Rxg2+ {[%clk 00:21:06]}
{[%emt 00:00:03]} 24. Kxg2 {[%clk 01:01:56]} {[%emt 00:00:15]} gxf6 {[%clk
00:21:31]} {[%emt 00:00:06]} 25. exf6+ {[%clk 01:01:47]} {[%emt 00:00:39]} Kf7
{[%clk 00:21:47]} {[%emt 00:00:13]} 26. Rf4 {[%clk 01:00:29]} {[%emt 00:01:48]}
Nb8 {[%clk 00:18:28]} {[%emt 00:03:49]} 27. h4 {[%clk 00:57:54]} {[%emt
00:03:06]} Rg8+ {[%clk 00:18:26]} {[%emt 00:00:31]} 28. Kh2 {[%clk 00:57:55]}
{[%emt 00:00:29]} Nd7 {[%clk 00:17:45]} {[%emt 00:01:11]} 29. Rfe4 {[%clk
00:57:27]} {[%emt 00:00:59]} Nc5 {[%emt 00:06:14]} 30. R4e3 {[%clk 00:55:54]}
{[%emt 00:00:25]} Rg4 {[%clk 00:13:00]} {[%emt 00:01:07]} 31. Rh3 {[%clk
00:55:27]} {[%emt 00:00:55]} Re4 {[%clk 00:09:25]} {[%emt 00:04:09]} 32. Rhe3
{[%clk 00:54:47]} {[%emt 00:01:10]} Rxh4+ {[%clk 00:09:37]} {[%emt 00:00:18]}
33. Kg3 {[%clk 00:55:05]} {[%emt 00:00:11]} Rh3+ {[%clk 00:09:04]} {[%emt
00:01:03]} 34. Kf4 {[%clk 00:55:22]} {[%emt 00:00:13]} Nd3+ {[%clk 00:08:57]}
{[%emt 00:00:37]} 0-1

[Event "Mistrovství Čech mládeže 2023 - HD16"]
[Site "Harrachov, Czech Republic"]
[Date "2023.10.28"]
[Round "9.18"]
[White "Markina, Sofiia"]
[Black "Dominiková, Denisa"]
[Result "1-0"]
[TimeControl "90m + 30s"]
[WhiteElo "1564"]
[BlackElo "1445"]

1. e4 {[%clk 01:30:58]} {[%emt 00:00:01]} e5 {[%clk 01:30:43]} {[%emt
00:00:17]} 2. Nf3 {[%clk 01:31:19]} {[%emt 00:00:08]} Nc6 {[%clk 01:30:54]}
{[%emt 00:00:20]} 3. Bc4 {[%clk 01:31:42]} {[%emt 00:00:08]} Bc5 {[%clk
01:31:14]} {[%emt 00:00:10]} 4. c3 {[%clk 01:31:57]} {[%emt 00:00:15]} Qe7
{[%clk 01:31:18]} {[%emt 00:00:25]} 5. d4 {[%clk 01:31:55]} {[%emt 00:00:32]}
Bb6 {[%clk 01:31:31]} {[%emt 00:00:17]} 6. O-O {[%clk 01:31:39]} {[%emt
00:00:46]} d6 {[%clk 01:31:32]} {[%emt 00:00:29]} 7. Re1 {[%clk 01:30:56]}
{[%emt 00:01:13]} Nf6 {[%clk 01:30:30]} {[%emt 00:01:31]} 8. h3 {[%clk
01:30:24]} {[%emt 00:01:03]} h6 {[%clk 01:30:02]} {[%emt 00:00:58]} 9. a4
{[%emt 00:02:22]} a6 {[%clk 01:29:48]} {[%emt 00:00:42]} 10. b4 {[%clk
01:28:42]} {[%emt 00:00:23]} O-O {[%clk 01:24:26]} {[%emt 00:05:51]} 11. a5
{[%clk 01:28:23]} {[%emt 00:00:49]} Ba7 {[%clk 01:24:21]} {[%emt 00:00:35]} 12.
d5 {[%clk 01:28:42]} {[%emt 00:00:11]} Nb8 {[%clk 01:23:37]} {[%emt 00:01:13]}
13. Be3 {[%clk 01:28:49]} {[%emt 00:00:23]} Bxe3 {[%clk 01:19:21]} {[%emt
00:04:46]} 14. Rxe3 {[%clk 01:28:13]} {[%emt 00:01:07]} Nbd7 {[%clk 01:15:31]}
{[%emt 00:04:19]} 15. Nbd2 {[%clk 01:26:55]} {[%emt 00:01:48]} Nh5 {[%clk
01:12:51]} {[%emt 00:03:10]} 16. Nf1 {[%clk 01:24:47]} {[%emt 00:02:39]} Nf4
{[%clk 01:09:14]} {[%emt 00:04:06]} 17. Ng3 {[%clk 01:24:42]} {[%emt 00:00:35]}
Nf6 {[%clk 01:03:26]} {[%emt 00:06:18]} 18. Rc1 {[%clk 01:17:41]} {[%emt
00:07:31]} Nh7 {[%clk 00:58:44]} {[%emt 00:05:12]} 19. Qc2 {[%clk 01:01:24]}
{[%emt 00:16:48]} Bd7 {[%clk 00:55:17]} {[%emt 00:03:57]} 20. Bb3 {[%clk
00:53:27]} {[%emt 00:08:27]} Ng5 {[%clk 00:49:22]} {[%emt 00:06:25]} 21. Ne2
{[%clk 00:47:08]} {[%emt 00:06:49]} f5 {[%clk 00:42:07]} {[%emt 00:07:45]} 22.
Nxg5 {[%clk 00:42:59]} {[%emt 00:04:39]} hxg5 {[%clk 00:40:49]} {[%emt
00:01:47]} 23. Nxf4 {[%clk 00:42:14]} {[%emt 00:01:15]} exf4 {[%clk 00:36:58]}
{[%emt 00:04:21]} 24. Ree1 {[%clk 00:40:36]} {[%emt 00:02:08]} fxe4 {[%clk
00:29:24]} {[%emt 00:08:05]} 25. Rxe4 {[%clk 00:38:12]} {[%emt 00:02:55]} Qf7
{[%clk 00:26:35]} {[%emt 00:03:16]} 26. Qd2 {[%clk 00:28:00]} {[%emt 00:10:43]}
Qf5 {[%clk 00:24:24]} {[%emt 00:02:39]} 27. Re7 {[%clk 00:24:33]} {[%emt
00:04:00]} g4 {[%clk 00:20:17]} {[%emt 00:04:36]} 28. Bc2 {[%clk 00:22:20]}
{[%emt 00:02:44]} Qg5 {[%clk 00:19:15]} {[%emt 00:01:31]} 29. Rxd7 {[%clk
00:20:04]} {[%emt 00:02:47]} gxh3 {[%clk 00:18:15]} {[%emt 00:01:29]} 30. f3
{[%clk 00:20:28]} {[%emt 00:00:07]} Rae8 {[%clk 00:15:09]} {[%emt 00:03:36]} 31.
Qf2 {[%clk 00:12:50]} {[%emt 00:08:09]} Rf6 {[%clk 00:11:55]} {[%emt 00:03:41]}
32. Be4 {[%clk 00:04:25]} {[%emt 00:08:56]} h2+ {[%clk 00:09:23]} {[%emt
00:03:02]} 33. Kh1 {[%clk 00:02:55]} {[%emt 00:02:01]} Rh6 {[%clk 00:01:58]}
{[%emt 00:07:54]} 34. Re1 {[%clk 00:02:53]} {[%emt 00:00:32]} Kf8 {[%clk
00:01:04]} {[%emt 00:01:24]} 35. Bd3 {[%clk 00:02:22]} {[%emt 00:01:01]} Rxe1+
{[%clk 00:01:12]} {[%emt 00:00:22]} 36. Qxe1 {[%clk 00:02:50]} {[%emt
00:00:03]} g6 {[%clk 00:00:37]} {[%emt 00:01:05]} 37. Rxc7 {[%clk 00:03:04]}
{[%emt 00:00:15]} Qd8 {[%clk 00:00:37]} {[%emt 00:00:30]} 38. Rxb7 {[%clk
00:03:03]} {[%emt 00:00:32]} g5 {[%clk 00:00:49]} {[%emt 00:00:17]} 39. Bxa6
{[%clk 00:01:41]} {[%emt 00:01:53]} Rh8 {[%clk 00:00:34]} {[%emt 00:00:44]} 40.
Qe6 {[%clk 00:01:58]} {[%emt 00:00:13]} g4 {[%clk 00:00:37]} {[%emt 00:00:28]}
41. Qf7# {[%clk 00:02:23]} {[%emt 00:00:05]} 1-0

[Event "Mistrovství Čech mládeže 2023 - HD16"]
[Site "Harrachov, Czech Republic"]
[Date "2023.10.28"]
[Round "9.19"]
[White "Šlosar, Jan"]
[Black "Tichý, Tomáš"]
[Result "0-1"]
[TimeControl "90m + 30s"]
[WhiteElo "1346"]
[BlackElo "1697"]

1. d4 {[%clk 01:30:54]} {[%emt 00:00:05]} Nf6 {[%clk 01:30:53]} {[%emt
00:00:07]} 2. Nf3 {[%clk 01:31:16]} {[%emt 00:00:09]} e6 {[%clk 01:31:17]}
{[%emt 00:00:05]} 3. c4 {[%clk 01:31:33]} {[%emt 00:00:14]} b6 {[%clk
01:31:43]} {[%emt 00:00:04]} 4. Nc3 {[%clk 01:31:51]} {[%emt 00:00:11]} Bb4
{[%clk 01:32:08]} {[%emt 00:00:05]} 5. Bg5 {[%clk 01:32:05]} {[%emt 00:00:16]}
Bb7 {[%clk 01:32:28]} {[%emt 00:00:10]} 6. e3 {[%clk 01:32:00]} {[%emt
00:00:34]} h6 {[%clk 01:32:52]} {[%emt 00:00:07]} 7. Bh4 {[%clk 01:32:14]}
{[%emt 00:00:16]} Bxc3+ {[%clk 01:32:53]} {[%emt 00:00:29]} 8. bxc3 {[%clk
01:32:37]} {[%emt 00:00:08]} d6 {[%clk 01:33:12]} {[%emt 00:00:11]} 9. Bd3
{[%clk 01:32:55]} {[%emt 00:00:11]} Nbd7 {[%clk 01:33:16]} {[%emt 00:00:26]} 10.
O-O {[%clk 01:33:05]} {[%emt 00:00:19]} Qe7 {[%clk 01:31:57]} {[%emt 00:01:50]}
11. a4 {[%clk 01:31:32]} {[%emt 00:02:03]} a5 {[%clk 01:28:51]} {[%emt
00:03:36]} 12. Nd2 {[%clk 01:27:30]} {[%emt 00:04:30]} g5 {[%clk 01:26:27]}
{[%emt 00:02:55]} 13. Bg3 {[%clk 01:26:46]} {[%emt 00:01:14]} O-O-O {[%clk
01:24:41]} {[%emt 00:02:17]} 14. e4 {[%clk 01:26:56]} {[%emt 00:00:20]} e5
{[%clk 01:22:14]} {[%emt 00:02:57]} 15. f3 {[%clk 01:24:11]} {[%emt 00:03:15]}
Rdg8 {[%clk 01:16:03]} {[%emt 00:06:40]} 16. Bf2 {[%clk 01:18:44]} {[%emt
00:05:58]} 0-1

[Event "Mistrovství Čech mládeže 2023 - HD16"]
[Site "Harrachov, Czech Republic"]
[Date "2023.10.28"]
[Round "9.20"]
[White "Ocelák, David"]
[Black "Mauder, Karel"]
[Result "1-0"]
[TimeControl "90m + 30s"]
[WhiteElo "1580"]
[BlackElo "1423"]

1. e4 {[%clk 01:30:39]} {[%emt 00:00:19]} e5 {[%clk 01:30:58]} {[%emt
00:00:03]} 2. Bc4 {[%clk 01:30:37]} {[%emt 00:00:32]} Nf6 {[%clk 01:31:07]}
{[%emt 00:00:21]} 3. d3 {[%clk 01:30:02]} {[%emt 00:00:39]} Bc5 4. Nf3 {[%emt
00:01:28]} d6 {[%clk 01:31:29]} {[%emt 00:00:07]} 5. Bg5 {[%clk 01:29:57]}
{[%emt 00:00:34]} h6 {[%clk 01:31:33]} {[%emt 00:00:26]} 6. Bh4 {[%clk
01:30:08]} {[%emt 00:00:18]} Nc6 {[%clk 01:30:23]} {[%emt 00:01:40]} 7. c3
{[%emt 00:04:39]} Be6 {[%emt 00:06:34]} 8. Nbd2 {[%emt 00:02:50]} Qd7 {[%emt
00:07:49]} 9. Qe2 {[%emt 00:04:05]} O-O-O {[%emt 00:04:18]} 10. b4 {[%clk
01:11:20]} {[%emt 00:00:10]} Bb6 11. a4 {[%clk 01:00:58]} {[%emt 00:04:30]} a5
12. Bb5 {[%emt 00:12:28]} g5 {[%emt 00:14:17]} 13. Bg3 {[%clk 00:47:10]} {[%emt
00:00:13]} h5 {[%clk 01:16:42]} {[%emt 00:01:46]} 14. Nc4 {[%clk 00:45:24]}
{[%emt 00:02:17]} Bxc4 {[%clk 01:14:13]} {[%emt 00:02:59]} 15. dxc4 {[%clk
00:43:43]} {[%emt 00:02:11]} h4 {[%clk 01:13:08]} {[%emt 00:01:34]} 16. Bxe5
{[%clk 00:43:30]} {[%emt 00:00:44]} dxe5 {[%clk 01:12:05]} {[%emt 00:01:33]} 17.
Nxe5 {[%clk 00:43:37]} {[%emt 00:00:24]} Qe6 {[%clk 01:09:35]} {[%emt
00:03:00]} 18. Nxc6 {[%clk 00:42:18]} {[%emt 00:01:48]} bxc6 {[%clk 01:10:03]}
{[%emt 00:00:02]} 19. Ba6+ {[%clk 00:42:18]} {[%emt 00:00:30]} Kd7 {[%clk
01:08:26]} {[%emt 00:02:07]} 20. e5 {[%clk 00:35:10]} {[%emt 00:07:38]} Ng4
{[%clk 01:07:29]} {[%emt 00:01:26]} 21. O-O {[%clk 00:34:59]} {[%emt 00:00:42]}
Nxe5 {[%clk 01:03:14]} {[%emt 00:04:45]} 22. Rfe1 {[%clk 00:31:58]} {[%emt
00:03:31]} f6 {[%clk 01:01:26]} {[%emt 00:02:18]} 23. c5 {[%clk 00:27:22]}
{[%emt 00:05:07]} Ba7 {[%clk 01:00:03]} {[%emt 00:01:53]} 24. Qe4 {[%clk
00:26:37]} {[%emt 00:01:14]} Ke7 {[%clk 00:59:01]} {[%emt 00:01:32]} 25. Bc4
{[%clk 00:25:27]} {[%emt 00:01:41]} Qd7 {[%clk 00:56:26]} {[%emt 00:03:05]} 26.
Qg6 {[%clk 00:22:43]} {[%emt 00:03:13]} Rhf8 {[%clk 00:50:18]} {[%emt
00:06:37]} 27. Rxe5+ {[%clk 00:06:08]} {[%emt 00:17:06]} fxe5 {[%clk 00:48:31]}
{[%emt 00:02:17]} 28. Re1 {[%clk 00:06:01]} {[%emt 00:00:36]} Rf5 {[%clk
00:26:16]} {[%emt 00:22:45]} 29. Rxe5+ {[%clk 00:06:00]} 1-0